bitfinex-derivatives/quotes_ETHF0:USTF0_20250614
["timestamp","ask_amount","ask_price","bid_price","bid_amount"]
[1749902597436,0.78712,2539.9,2539.8,0.85521268]
[1749902598336,3.99491,2540.0,2539.9,0.78712]
[1749902598535,0.78712,2539.9,2539.8,0.85522268]
[1749902600535,3.99491,2540.0,2539.9,0.78712]
[1749902600839,0.78712,2539.9,2539.8,0.85521268]
[1749902602540,3.9949,2540.0,2539.9,0.78712]
[1749902603442,3.2078,2540.0,2539.9,0.78712]
[1749902603737,3.99489,2540.0,2539.9,0.78712]
[1749902604329,0.78712,2539.9,2539.8,0.85521268]
[1749902605538,3.2078,2540.0,2539.9,0.78712]
[1749902605539,3.99491,2540.0,2539.9,0.78712]
[1749902606544,0.78711,2540.0,2539.9,0.78712]
[1749902607943,6.92099354,2540.1,2540.0,0.78709]
[1749902608241,0.78711,2540.0,2539.9,0.7871]
[1749902608843,6.92099354,2540.1,2540.0,0.78709]
[1749902609530,6.13391354,2540.1,2540.0,0.78709]
[1749902610336,6.13391354,2540.1,2540.0,2.09559]
[1749902610535,6.13391354,2540.1,2540.0,3.38859]
[1749902612542,0.00591354,2540.1,2540.0,3.38859]
[1749902616142,0.00591354,2540.1,2540.0,3.45668268]
[1749902617942,0.79298354,2540.1,2540.0,2.16368268]
[1749902626250,0.79298354,2540.1,2540.0,0.06809268]
[1749902627153,2.05328354,2540.1,2540.0,0.06809268]
[1749902627353,25.93728354,2540.1,2540.0,0.06809268]
[1749902632061,30.93728354,2540.1,2540.0,0.06809268]
[1749902632264,0.7872,2539.7,2539.6,0.00591354]
[1749902632468,0.7872,2539.7,2539.6,0.79314354]
[1749902634070,0.7872,2539.7,2539.6,0.00591354]
[1749902634269,0.7872,2539.7,2539.6,0.79314354]
[1749902635470,0.7872,2539.7,2539.6,0.00591354]
[1749902635769,0.7872,2539.7,2539.6,0.79314354]
[1749902635965,0.7872,2539.7,2539.6,0.00591354]
[1749902636362,2.086,2539.7,2539.6,0.00591354]
[1749902636676,32.097,2539.7,2539.6,0.00591354]
[1749902637264,5.2938,2539.7,2539.6,0.00591354]
[1749902637770,29.1788,2539.7,2539.6,0.00591354]
[1749902639671,0.78732,2539.3,2539.2,0.627]
[1749902640374,0.78732,2539.3,2539.2,1.41435]
[1749902641571,0.78738,2539.1,2539.0,0.00591354]
[1749902644673,0.78738,2539.1,2539.0,0.07400622]
[1749902644674,3.99518,2539.1,2539.0,0.07400622]
[1749902649580,4.63848,2539.1,2539.0,0.07400622]
[1749902652681,34.65448,2539.1,2539.0,0.07400622]
[1749902653580,0.78763,2538.4,2538.3,0.78761]
[1749902653785,0.78759,2538.5,2538.4,0.78757]
[1749902655177,0.78759,2538.5,2538.4,2.09987]
[1749902658291,0.78759,2538.5,2538.4,1.3123]
[1749902659194,0.78759,2538.5,2538.4,2.0999]
[1749902659787,0.78759,2538.5,2538.4,2.16799268]
[1749902664897,0.78759,2538.5,2538.4,1.38039268]
[1749902666397,0.78759,2538.5,2538.4,2.16799268]
[1749902669299,4.00123354,2538.7,2538.6,0.78754]
[1749902669501,0.00591354,2538.7,2538.6,3.99534]
[1749902669697,0.00591354,2538.7,2538.6,6.01934]
[1749902669899,0.00591354,2538.7,2538.6,7.58862365]
[1749902671007,0.00591354,2538.7,2538.6,6.01934]
[1749902671300,0.00591354,2538.7,2538.6,7.58862365]
[1749902671498,0.79342354,2538.7,2538.6,6.01934]
[1749902671893,0.79342354,2538.7,2538.6,7.58862365]
[1749902672101,0.79342354,2538.7,2538.6,6.01934]
[1749902672406,0.00591354,2538.7,2538.6,7.58862365]
[1749902672802,0.79342354,2538.7,2538.6,7.58862365]
[1749902673006,0.00591354,2538.7,2538.6,7.58862365]
[1749902674112,0.00591354,2538.7,2538.6,12.58862365]
[1749902674414,3.2078,2539.1,2539.0,0.78741]
[1749902675113,3.99518,2539.1,2539.0,0.78741]
[1749902675607,0.78738,2539.1,2539.0,2.03431]
[1749902677310,0.78748,2538.8,2538.7,0.6384]
[1749902677606,0.78748,2538.8,2538.7,0.6297]
[1749902679004,0.78751,2538.7,2538.6,0.06809268]
[1749902681113,2.06931,2538.7,2538.6,0.06809268]
[1749902681312,8.19331,2538.7,2538.6,0.06809268]
[1749902682305,8.19331,2538.7,2538.2,3.85901354]
[1749902682306,0.78763,2538.3,2538.2,0.00591354]
[1749902684001,6.91163,2538.3,2538.2,0.00591354]
[1749902684407,0.78776,2537.9,2537.8,1.41076]
[1749902684808,0.78782,2537.7,2537.6,2.35964938]
[1749902685009,0.78782,2537.7,2537.6,2.98154938]
[1749902685204,0.78777,2537.9,2537.8,0.78776]
[1749902685406,0.78777,2537.9,2537.6,0.6219]
[1749902685407,0.78781,2537.8,2537.7,0.7878]
[1749902687910,0.78782,2537.7,2537.6,1.41565354]
[1749902688819,0.78782,2537.7,2537.6,0.62781354]
[1749902689122,0.78782,2537.7,2537.6,0.00591354]
[1749902689911,2.73452,2537.7,2537.6,0.00591354]
[1749902690303,2.73452,2537.7,2537.6,0.07400622]
[1749902692811,0.78782,2537.7,2537.6,0.86185622]
[1749902701238,0.78782,2537.7,2537.6,0.07400622]
[1749902702631,0.78782,2537.7,2537.6,0.86185622]
[1749902703834,0.78782,2537.7,2537.6,0.07400622]
[1749902709434,2.68592,2537.7,2537.6,0.07400622]
[1749902710730,0.78782,2537.7,2537.6,0.86185622]
[1749902711432,0.78782,2537.7,2537.6,0.07400622]
[1749902711830,0.78782,2537.7,2537.6,0.86185622]
[1749902712030,0.78782,2537.7,2537.6,0.07400622]
[1749902712845,0.78782,2537.7,2537.6,0.86185622]
[1749902715843,0.78782,2537.7,2537.6,2.21605622]
[1749902718547,0.78782,2537.7,2537.6,0.86185622]
[1749902718938,0.78782,2537.7,2537.6,0.07400622]
[1749902720444,0.78782,2537.7,2537.6,0.86185622]
[1749902721446,6.91382,2537.7,2537.6,0.86185622]
[1749902721638,6.91382,2537.7,2537.6,2.17395622]
[1749902721841,0.78782,2537.7,2537.6,2.17395622]
[1749902727744,0.78782,2537.7,2537.6,1.38610622]
[1749902727949,0.78782,2537.7,2537.6,0.07400622]
[1749902729962,0.78782,2537.7,2537.6,0.86185622]
[1749902730651,0.78782,2537.7,2537.6,0.07400622]
[1749902748270,0.78794,2537.3,2537.1,1.56866952]
[1749902748558,0.788,2537.1,2537.0,1.56866952]
[1749902748764,0.788,2537.1,2536.9,0.6735]
[1749902748765,0.78803,2537.0,2536.9,3.03022952]
[1749902749259,0.78803,2537.0,2536.9,1.46156]
[1749902749660,0.78803,2537.0,2536.9,2.80887]
[1749902750066,0.78803,2537.0,2536.9,0.6735]
[1749902750369,0.78807,2536.9,2536.8,0.7881]
[1749902751259,0.78807,2537.0,2536.9,0.78805]
[1749902751459,0.78808,2536.9,2536.8,1.46597]
[1749902756080,0.7881,2536.8,2536.7,0.00591354]
[1749902756272,2.7069,2536.8,2536.7,0.00591354]
[1749902761683,0.78828,2536.3,2536.1,1.9294]
[1749902761874,0.78828,2536.3,2536.2,0.78827]
[1749902762686,3.21371354,2536.5,2536.1,3.90019]
[1749902762890,0.78825,2536.3,2536.2,2.09055]
[1749902764187,0.78825,2536.3,2536.2,1.3023]
[1749902764580,0.78825,2536.3,2536.2,2.09058]
[1749902764780,0.78825,2536.3,2536.2,1.3023]
[1749902765486,0.00591354,2536.5,2536.4,0.78822]
[1749902765682,0.00591354,2536.5,2536.4,3.99602]
[1749902765884,0.00591354,2536.5,2536.4,8.99602]
[1749902768494,0.79410354,2536.5,2536.4,3.99602]
[1749902768679,0.78822,2536.4,2536.3,1.3779]
[1749902769390,0.78822,2536.4,2536.3,2.16615]
[1749902772991,0.78822,2536.4,2536.3,1.3779]
[1749902773192,0.78828,2536.2,2536.1,0.6495]
[1749902776488,0.78826,2536.3,2536.2,0.78825]
[1749902777092,3.2078,2536.4,2536.3,0.78825]
[1749902777395,0.79411354,2536.5,2536.4,0.78822]
[1749902777793,0.00591354,2536.5,2536.4,0.78822]
[1749902778394,0.00591354,2536.5,2536.4,1.45712]
[1749902778695,0.79410354,2536.5,2536.4,1.45712]
[1749902778897,0.00591354,2536.5,2536.4,1.45712]
[1749902779096,0.79410354,2536.5,2536.4,1.45712]
[1749902779296,0.00591354,2536.5,2536.4,1.45712]
[1749902780194,0.79410354,2536.5,2536.4,1.45712]
[1749902781098,0.00591354,2536.5,2536.4,1.45712]
[1749902781692,0.00591354,2536.5,2536.4,6.45712]
[1749902781897,0.00591354,2536.5,2536.4,8.02578952]
[1749902782105,3.2078,2537.0,2536.9,0.78807]
[1749902782797,0.78804,2537.0,2536.9,2.11027]
[1749902785493,0.78804,2537.0,2536.8,2.12567]
[1749902785798,0.78806,2536.9,2536.8,2.12567]
[1749902790202,0.78806,2536.9,2536.8,2.1257]
[1749902790404,0.78806,2536.9,2536.8,1.4507]
[1749902790602,0.78806,2536.9,2536.8,0.6626]
[1749902791305,0.78806,2536.9,2536.8,1.4507]
[1749902791998,0.78806,2537.0,2536.9,0.78803]
[1749902792604,0.78803,2537.1,2537.0,0.788]
[1749902792798,0.79391354,2537.2,2537.1,0.788]
[1749902794705,0.79388354,2537.2,2537.1,0.788]
[1749902797696,0.788,2537.1,2537.0,1.3601]
[1749902798201,0.788,2537.1,2537.0,2.1481]
[1749902799510,0.78807,2536.9,2536.8,3.8704]
[1749902799704,0.78807,2536.9,2536.8,1.4507]
[1749902800196,0.78807,2536.9,2536.8,2.79]
[1749902800909,0.78806,2537.0,2536.9,0.78803]
[1749902801807,0.79391354,2537.2,2537.1,0.788]
[1749902802502,0.00591354,2537.2,2537.1,0.788]
[1749902804007,0.78785,2537.7,2537.6,0.78781]
[1749902804897,3.86621354,2537.9,2537.4,1.31311354]
[1749902805099,4.00151354,2537.9,2537.8,0.78779]
[1749902806208,0.78779,2537.8,2537.7,0.6266]
[1749902806404,0.78782,2537.7,2537.6,0.78783]
[1749902806606,0.78785,2537.6,2537.5,1.3072]
[1749902806802,0.78788,2537.5,2537.4,0.00591354]
[1749902807309,2.04778,2537.5,2537.4,0.00591354]
[1749902814205,1.96998,2537.2,2536.8,24.62708]
[1749902814412,0.78807,2536.9,2536.8,0.78808]
[1749902814609,0.78809,2536.9,2536.8,0.78807]
[1749902815414,0.78813,2536.7,2536.6,0.79404354]
[1749902816417,0.78813,2536.7,2536.6,0.00591354]
[1749902817815,0.78813,2536.7,2536.6,0.79407354]
[1749902819719,0.78813,2536.7,2536.6,0.00591354]
[1749902820120,1.41633,2536.7,2536.6,0.00591354]
[1749902821128,1.41633,2536.7,2536.6,0.79407354]
[1749902821424,1.41633,2536.7,2536.6,0.00591354]
[1749902821723,0.78813,2536.7,2536.6,0.79407354]
[1749902822122,0.78813,2536.7,2536.6,0.00591354]
[1749902822424,0.78813,2536.7,2536.6,0.79407354]
[1749902823427,0.78813,2536.7,2536.6,0.00591354]
[1749902823925,0.78813,2536.7,2536.6,0.79407354]
[1749902824125,0.78813,2536.7,2536.6,0.00591354]
[1749902824720,0.78813,2536.7,2536.6,0.79407354]
[1749902825025,0.78813,2536.7,2536.6,0.00591354]
[1749902826716,2.05773,2536.7,2536.6,0.00591354]
[1749902827417,0.78825,2536.3,2536.2,0.78826]
[1749902827617,0.78824,2536.4,2536.3,0.78821]
[1749902827831,5.17841,2536.4,2535.8,4.78018025]
[1749902828128,0.78835,2536.1,2536.0,1.44383]
[1749902832018,0.78835,2536.1,2536.0,0.6555]
[1749902833426,0.78835,2536.1,2536.0,1.44385]
[1749902833823,0.78838,2535.9,2535.8,0.00591354]
[1749902834229,0.78838,2535.9,2535.8,0.79432354]
[1749902835927,0.78838,2535.9,2535.8,0.00591354]
[1749902838425,2.13068,2535.9,2535.8,0.00591354]
[1749902838832,2.13068,2535.9,2535.8,0.79432354]
[1749902839029,0.78838,2535.9,2535.8,0.79432354]
[1749902839432,0.78838,2535.9,2535.8,0.00591354]
[1749902839924,0.78838,2535.9,2535.8,0.79432354]
[1749902840234,0.78838,2535.9,2535.8,0.00591354]
[1749902840930,2.12148,2535.9,2535.8,0.00591354]
[1749902842033,0.78858,2535.3,2535.2,0.78856]
[1749902843331,0.78863,2535.1,2535.0,0.00394237]
[1749902843533,6.127,2535.2,2535.1,0.7886]
[1749902843732,0.78863,2535.1,2535.0,0.00394237]
[1749902844038,0.78863,2535.1,2535.0,1.28784237]
[1749902844227,0.78863,2535.1,2535.0,2.07648237]
[1749902844936,6.91561,2535.2,2535.1,0.78863]
[1749902845236,0.78863,2535.1,2535.0,2.07647237]
[1749902845532,6.91561,2535.2,2535.1,0.78863]
[1749902846436,10.12436,2535.3,2535.2,0.78859]
[1749902846934,3.99636,2535.3,2535.2,0.78859]
[1749902847330,0.7886,2535.2,2535.1,0.7886]
[1749902847532,0.78863,2535.1,2535.0,1.28784237]
[1749902847727,0.78863,2535.1,2535.0,0.00394237]
[1749902848638,0.78863,2535.1,2535.0,0.79260237]
[1749902848931,0.78863,2535.1,2535.0,0.00394237]
[1749902849639,0.78863,2535.1,2535.0,0.79260237]
[1749902850032,0.78863,2535.1,2535.0,0.00394237]
[1749902851140,0.78863,2535.1,2535.0,0.79260237]
[1749902852434,0.78862,2535.2,2535.1,0.78859]
[1749902853339,0.78863,2535.1,2535.0,2.08458237]
[1749902854238,0.78862,2535.2,2535.1,0.78859]
[1749902859446,0.78863,2535.1,2535.0,1.29594237]
[1749902860146,0.78863,2535.1,2535.0,0.00394237]
[1749902861253,0.78863,2535.1,2535.0,0.79260237]
[1749902861745,0.78863,2535.1,2535.0,2.06840237]
[1749902863747,0.78863,2535.1,2535.0,2.73620237]
[1749902864445,0.78859,2535.3,2535.2,0.78859]
[1749902865144,0.78859,2535.2,2535.1,2.03521]
[1749902867445,6.206,2535.4,2535.1,1.2466]
[1749902867643,6.206,2535.4,2535.3,0.78856]
[1749902868154,6.206,2535.4,2535.3,1.46496]
[1749902868340,3.2078,2535.6,2535.5,0.7885]
[1749902868545,3.99627,2535.6,2535.5,0.7885]
[1749902869652,3.99627,2535.6,2535.5,2.1323]
[1749902869850,3.2078,2535.6,2535.5,2.1323]
[1749902870052,0.78834,2536.1,2536.0,0.78831]
[1749902870749,0.6873,2536.2,2536.1,0.78831]
[1749902870750,0.78831,2536.2,2536.1,0.78831]
[1749902870942,7.00017354,2536.3,2536.2,0.78828]
[1749902872355,0.78831,2536.2,2536.1,0.78831]
[1749902873546,0.79419354,2536.3,2536.2,0.78828]
[1749902874960,4.00199354,2536.3,2536.2,0.78828]
[1749902880259,3.21371354,2536.3,2536.2,0.78828]
[1749902880666,0.00591354,2536.3,2536.2,0.78828]
[1749902881065,0.00591354,2536.3,2536.2,1.44488]
[1749902883262,3.2078,2536.6,2536.5,0.78819]
[1749902884072,3.2078,2536.6,2536.5,2.10339]
[1749902885772,0.79403354,2536.8,2536.7,0.78813]
[1749902892867,0.79403354,2536.8,2536.3,0.00591354]
[1749902892868,0.78819,2536.5,2536.3,0.00591354]
[1749902893073,0.78822,2536.4,2536.3,0.79414354]
[1749902894079,4.5636,2536.6,2536.3,0.00591354]
[1749902894382,5.35178,2536.6,2536.5,0.78819]
[1749902895279,3.2078,2536.6,2536.5,0.78819]
[1749902896081,3.2078,2536.6,2536.5,1.42099]
[1749902897177,3.99596,2536.6,2536.5,1.42099]
[1749902901185,3.99596,2536.6,2536.5,0.78819]
[1749902901380,0.78822,2536.4,2536.3,0.00591354]
[1749902901986,2.12952,2536.4,2536.3,0.00591354]
[1749902902291,3.06635741,2536.4,2536.3,0.00591354]
[1749902903278,3.06635741,2536.4,2536.3,0.79416354]
[1749902903679,3.06635741,2536.4,2536.3,0.00591354]
[1749902904084,3.06635741,2536.4,2536.3,0.79416354]
[1749902904586,3.06635741,2536.4,2536.3,0.00591354]
[1749902904886,3.06635741,2536.4,2536.3,0.79416354]
[1749902911892,3.06635741,2536.4,2536.3,0.00591354]
[1749902915992,6.27415741,2536.4,2536.3,0.00591354]
[1749902919186,0.78835,2536.0,2535.9,0.6444]
[1749902920496,0.78835,2536.0,2535.9,1.43278]
[1749902923195,0.78835,2536.0,2535.9,0.6444]
[1749902923392,1.72497708,2536.0,2535.9,0.6444]
[1749902926899,0.78841,2535.8,2535.7,0.00394237]
[1749902927790,0.78841,2535.8,2535.7,0.79238237]
[1749902935011,0.78841,2535.8,2535.7,0.00394237]
[1749902935209,1.72581078,2535.8,2535.7,0.00394237]
[1749902935412,4.93361078,2535.8,2535.7,0.00394237]
[1749902937211,5.57591078,2535.8,2535.7,0.00394237]
[1749902951121,4.93361078,2535.8,2535.7,0.00394237]
[1749902951413,4.14520078,2535.8,2535.7,0.79238237]
[1749902951621,4.14520078,2535.8,2535.7,5.79238237]
[1749902951622,3.2078,2535.8,2535.7,5.79238237]
[1749902951914,3.2078,2535.8,2535.7,0.79238237]
[1749902952318,3.2078,2535.8,2535.7,2.13678237]
[1749902952814,3.99621,2535.8,2535.7,2.13678237]
[1749902953119,3.2078,2535.8,2535.7,2.13678237]
[1749902956515,0.78838,2535.9,2535.8,0.78841]
[1749902956818,0.78838,2535.9,2535.8,2.74381]
[1749902962022,0.78841,2535.8,2535.7,0.00394237]
[1749902962223,0.78841,2535.8,2535.7,0.64824237]
[1749902962621,3.99621,2535.8,2535.7,0.00394237]
[1749902962826,4.9325191,2535.8,2535.7,0.00394237]
[1749902970224,3.99621,2535.8,2535.7,0.00394237]
[1749902970423,4.9320911,2535.8,2535.7,0.00394237]
[1749902971521,4.9320911,2535.8,2535.7,0.79238237]
[1749902971727,1.7242911,2535.8,2535.7,2.07628237]
[1749902972630,0.78841,2535.8,2535.7,1.28784237]
[1749902973127,1.72446391,2535.8,2535.7,0.00394237]
[1749902976027,3.05686391,2535.8,2535.7,0.00394237]
[1749902978028,3.05686391,2535.8,2535.1,8.49200428]
[1749902978029,0.78859,2535.2,2535.1,2.35300428]
[1749902978336,0.78859,2535.2,2535.1,0.6659]
[1749902978337,3.99639,2535.2,2535.1,0.6659]
[1749902978834,4.93218918,2535.2,2535.1,0.6659]
[1749902979034,0.78866,2535.0,2534.9,1.47228]
[1749902979234,0.78866,2535.0,2534.9,1.3495]
[1749902979640,0.78866,2535.0,2534.9,0.6659]
[1749902983236,0.78866,2535.0,2534.9,1.45459]
[1749902986439,0.78866,2535.0,2534.9,0.6659]
[1749902987342,0.78866,2535.0,2534.9,1.45459]
[1749902989145,0.78866,2535.0,2534.9,0.6659]
[1749902989742,0.78866,2535.0,2534.9,1.45459]
[1749902990741,0.78865,2535.1,2535.0,0.78863]
[1749902990942,0.78865,2535.1,2535.0,2.04483]
[1749902992338,0.7886,2535.3,2535.2,0.78858]
[1749902992547,1.72319798,2535.3,2535.2,0.78858]
[1749902992747,0.7886,2535.3,2535.2,0.78858]
[1749902992941,0.7886,2535.3,2535.2,2.80498]
[1749902993143,0.79446354,2535.4,2535.3,0.78856]
[1749902993347,0.79446354,2535.4,2535.3,2.14566]
[1749902999350,0.00591354,2535.4,2535.3,2.14566]
[1749903000349,0.79444354,2535.4,2535.3,2.14566]
[1749903001851,0.00591354,2535.4,2535.3,2.14566]
[1749903003148,0.79444354,2535.4,2535.3,2.14566]
[1749903004953,0.00591354,2535.4,2535.3,2.14566]
[1749903012667,0.79444354,2535.4,2535.3,2.14566]
[1749903014061,0.79444354,2535.4,2535.3,0.78856]
[1749903021768,1.73229683,2535.4,2535.3,0.78856]
[1749903022071,0.78856,2535.3,2535.2,1.44788]
[1749903022264,1.72686973,2535.3,2535.2,1.44788]
[1749903022469,1.72685782,2535.3,2535.2,1.44788]
[1749903023157,0.78859,2535.2,2535.1,3.14163428]
[1749903023457,0.78863,2535.1,2535.0,0.78865]
[1749903023660,1.72696949,2535.1,2535.0,0.78865]
[1749903026963,0.93833949,2535.1,2534.9,0.6479]
[1749903027271,1.72632896,2535.0,2534.9,0.6479]
[1749903028374,1.72632896,2535.0,2534.9,1.43659]
[1749903029768,0.78866,2535.0,2534.9,0.6479]
[1749903029974,0.78866,2535.0,2534.9,2.72899]
[1749903031067,0.78865,2535.1,2535.0,0.78861]
[1749903032471,0.78862,2535.2,2535.1,0.78859]
[1749903032668,1.72747843,2535.2,2535.1,0.78859]
[1749903034973,0.78866,2535.1,2535.0,0.78865]
[1749903035173,1.72751843,2535.1,2535.0,0.78865]
[1749903035873,0.78866,2535.1,2535.0,0.78865]
[1749903036268,1.72745546,2535.1,2535.0,0.78865]
[1749903037374,0.78866,2535.1,2535.0,0.78865]
[1749903039172,0.78866,2535.0,2534.9,0.6479]
[1749903039573,1.41086,2535.0,2534.9,0.6479]
[1749903039875,1.41086,2535.0,2534.9,1.43659]
[1749903040277,0.78864,2535.1,2535.0,0.78866]
[1749903041475,0.7886,2535.2,2535.1,0.78862]
[1749903041676,1.72756858,2535.2,2535.1,0.78862]
[1749903042575,0.93896858,2535.2,2535.1,0.78862]
[1749903042878,0.00591354,2535.4,2535.3,0.78856]
[1749903043074,0.94541196,2535.4,2535.3,0.78856]
[1749903043279,0.00591354,2535.4,2535.3,2.07946]
[1749903045082,0.79444354,2535.4,2535.3,0.78856]
[1749903048679,0.78856,2535.3,2535.2,2.08898]
[1749903048876,0.78856,2535.3,2535.2,0.6228]
[1749903049083,1.46946,2535.3,2535.2,0.6228]
[1749903049477,1.46946,2535.3,2535.2,1.41139]
[1749903049677,1.46946,2535.3,2535.2,0.6228]
[1749903049879,1.46946,2535.3,2535.2,1.41139]
[1749903053685,0.78859,2535.2,2535.1,0.7886]
[1749903055586,0.78862,2535.1,2535.0,1.41274]
[1749903057283,0.78862,2535.1,2534.8,6.81670428]
[1749903057284,0.78869,2534.9,2534.8,3.2078]
[1749903057482,1.97165,2535.0,2534.5,5.56080428]
[1749903057681,0.78878,2534.6,2534.5,3.2078]
[1749903058087,0.78881,2534.5,2534.4,0.6345]
[1749903058285,1.7293615,2534.5,2534.4,0.6345]
[1749903059091,0.78887,2534.3,2534.2,1.41739]
[1749903059387,0.78887,2534.3,2534.2,2.10209]
[1749903059784,0.78887,2534.3,2534.2,1.3132]
[1749903060492,0.78899,2534.0,2533.9,0.789]
[1749903060687,0.78899,2534.0,2533.9,2.124]
[1749903060882,0.78896,2534.1,2534.0,0.78896]
[1749903061085,0.78897,2534.0,2533.9,1.335]
[1749903061291,0.78897,2534.0,2533.9,0.6847]
[1749903061492,0.78901,2533.9,2533.7,3.2078]
[1749903061688,0.78901,2533.9,2533.8,0.78903]
[1749903062296,0.79485354,2534.1,2534.0,0.78897]
[1749903062487,0.00591354,2534.1,2534.0,3.99677]
[1749903063585,0.00591354,2534.1,2534.0,5.32927]
[1749903064690,0.79485354,2534.1,2534.0,1.3325]
[1749903064992,0.79485354,2534.1,2534.0,0.6428]
[1749903065687,0.00591354,2534.1,2534.0,1.43176]
[1749903067296,0.00591354,2534.1,2534.0,0.6428]
[1749903067297,0.79484354,2534.1,2534.0,0.6428]
[1749903067608,0.00591354,2534.1,2534.0,1.43176]
[1749903069986,0.00591354,2534.1,2534.0,0.6428]
[1749903070190,0.79484354,2534.1,2534.0,0.6428]
[1749903070386,0.00591354,2534.1,2534.0,1.43176]
[1749903070592,0.79484354,2534.1,2534.0,0.6428]
[1749903071600,0.00591354,2534.1,2534.0,1.43176]
[1749903072405,0.79484354,2534.1,2534.0,0.6428]
[1749903073298,0.79484354,2534.1,2534.0,1.43176]
[1749903073503,0.00591354,2534.1,2534.0,1.43176]
[1749903075194,0.79484354,2534.1,2534.0,1.43176]
[1749903076904,0.00591354,2534.1,2534.0,1.43176]
[1749903077607,0.79484354,2534.1,2534.0,1.43176]
[1749903080011,0.00591354,2534.1,2534.0,1.43176]
[1749903080707,0.79484354,2534.1,2534.0,1.43176]
[1749903083906,0.00591354,2534.1,2534.0,1.43176]
[1749903084100,0.00591354,2534.1,2534.0,4.63956]
[1749903085613,0.79484354,2534.1,2534.0,4.63956]
[1749903086302,0.00591354,2534.1,2534.0,4.63956]
[1749903087609,1.74110456,2534.1,2534.0,4.63956]
[1749903088315,0.95217456,2534.1,2534.0,4.63956]
[1749903088509,1.74110456,2534.1,2534.0,4.63956]
[1749903088710,0.95217456,2534.1,2534.0,4.63956]
[1749903088912,1.74110456,2534.1,2534.0,4.63956]
[1749903090118,1.74110456,2534.1,2534.0,3.8506]
[1749903090413,0.78896,2534.0,2533.9,0.78899]
[1749903090613,0.78896,2534.0,2533.9,1.46099]
[1749903091014,0.79487354,2534.1,2534.0,0.78896]
[1749903091215,0.95148525,2534.1,2534.0,0.78896]
[1749903091411,1.74041525,2534.1,2534.0,2.12156]
[1749903091909,0.95148525,2534.1,2534.0,2.12156]
[1749903092618,1.74041525,2534.1,2534.0,2.12156]
[1749903092817,0.78896,2534.0,2533.9,1.46097]
[1749903093414,7.91007592,2534.0,2532.9,1.97327]
[1749903093618,0.78912,2533.5,2533.4,0.6352]
[1749903093819,3.99692,2533.5,2533.4,0.6352]
[1749903094012,4.94259592,2533.5,2533.4,0.6352]
[1749903097117,4.15347592,2533.5,2533.4,1.42435]
[1749903097316,3.2078,2533.8,2533.4,1.9899]
[1749903097516,1.00763689,2533.7,2533.6,0.78909]
[1749903098624,1.00763689,2533.7,2533.6,1.47839]
[1749903099026,1.79669689,2533.7,2533.6,1.47839]
[1749903099222,1.00763689,2533.7,2533.6,1.47839]
[1749903101632,1.79669689,2533.7,2533.6,1.47839]
[1749903101826,1.00763689,2533.7,2533.6,1.47839]
[1749903102127,1.79669689,2533.7,2533.6,0.6893]
[1749903102624,1.79669689,2533.7,2533.6,1.47839]
[1749903103827,1.00763689,2533.7,2533.6,1.47839]
[1749903104026,1.79669689,2533.7,2533.6,1.47839]
[1749903106533,1.79661308,2533.7,2533.6,1.47839]
[1749903109533,1.00755308,2533.7,2533.6,1.47839]
[1749903110131,1.79661308,2533.7,2533.6,1.47839]
[1749903115036,5.00441308,2533.7,2533.6,1.47839]
[1749903118128,5.00441308,2533.7,2533.6,0.6893]
[1749903118730,0.78909,2533.6,2533.5,2.14381]
[1749903118926,1.79664308,2533.6,2533.5,2.14381]
[1749903120129,0.78912,2533.5,2533.4,1.2956]
[1749903120325,1.80297144,2533.5,2533.4,1.2956]
[1749903120532,1.80297144,2533.5,2533.4,2.08472]
[1749903121638,1.80297144,2533.5,2533.4,1.2956]
[1749903122030,1.80297144,2533.5,2533.2,1.3135]
[1749903122031,0.78918,2533.3,2533.2,1.3135]
[1749903122238,4.22165144,2533.3,2533.2,2.10269]
[1749903122932,5.01083144,2533.3,2533.2,2.10269]
[1749903123937,5.01083144,2533.3,2533.2,1.3135]
[1749903124236,5.01083144,2533.3,2533.2,2.10271]
[1749903125638,0.78924,2533.2,2533.1,0.78922]
[1749903125939,1.80309144,2533.2,2533.1,0.78922]
[1749903126640,0.78924,2533.1,2533.0,0.6864]
[1749903126835,6.229,2533.5,2533.4,0.78915]
[1749903127039,1.0143386,2533.5,2533.4,0.78915]
[1749903127244,3.2078,2533.6,2533.5,0.78912]
[1749903127639,4.22218932,2533.6,2533.5,0.78912]
[1749903127938,1.01438932,2533.6,2533.5,0.78912]
[1749903128138,1.01438932,2533.6,2533.5,2.05192]
[1749903129844,5.01127932,2533.6,2533.5,2.05192]
[1749903130345,5.01127932,2533.6,2533.5,1.2628]
[1749903130739,4.22218932,2533.6,2533.5,2.05192]
[1749903131438,5.01127932,2533.6,2533.5,2.05192]
[1749903131746,4.22218932,2533.6,2533.5,2.05192]
[1749903139352,1.01438932,2533.6,2533.5,2.05192]
[1749903140946,3.2078,2533.9,2533.8,0.78903]
[1749903141145,4.22232991,2533.9,2533.8,0.78903]
[1749903141345,0.78904,2533.8,2533.7,0.78903]
[1749903142450,1.8034213,2533.8,2533.7,0.78903]
[1749903142658,1.8034213,2533.8,2533.7,2.06623]
[1749903143251,1.0143813,2533.8,2533.7,2.06623]
[1749903143848,1.8034113,2533.8,2533.7,2.06623]
[1749903145445,1.80268176,2533.8,2533.7,2.06623]
[1749903145643,1.80268176,2533.8,2533.7,1.2772]
[1749903145844,1.80268176,2533.8,2533.7,2.06626]
[1749903147851,1.80268176,2533.8,2533.7,0.78906]
[1749903150254,0.78912,2533.5,2533.4,1.44114]
[1749903150452,0.78917,2533.4,2533.3,0.78916]
[1749903151350,1.80251883,2533.4,2533.3,0.78916]
[1749903151553,1.80253931,2533.4,2533.3,0.78916]
[1749903151753,0.78913,2533.5,2533.4,0.78912]
[1749903152053,1.80246725,2533.5,2533.4,0.78912]
[1749903153055,0.78913,2533.5,2533.4,0.78912]
[1749903153552,1.80253818,2533.5,2533.4,0.78912]
[1749903154153,1.80296001,2533.5,2533.4,0.78912]